fUSD/lending_fUSD_20251221
["ID","MTS","AMOUNT","RATE_DAILY","PERIOD"]
[399424945,1766340982562,-500.0,9.98e-05,2]
[399424946,1766340982589,-502.13274033,9.98e-05,2]
[399424947,1766340982616,-500.0,9.98e-05,2]
[399424948,1766340982643,-500.0,9.98e-05,2]
[399424949,1766340982670,-500.0,9.98e-05,2]
[399424950,1766340982701,-449.64862358,9.98e-05,2]
[399424951,1766340982912,-50.35137642,9.98e-05,2]
[399424952,1766340982950,-500.0,9.98e-05,2]
[399424953,1766340982982,-500.0,9.98e-05,2]
[399424954,1766340983012,-632.24168523,9.98e-05,2]
[399424955,1766340983045,-500.0,9.98e-05,2]
[399424956,1766340983076,-500.0,9.98e-05,2]
[399424957,1766340983108,-500.0,9.98e-05,2]
[399424958,1766340983143,-500.0,9.98e-05,2]
[399424959,1766340983174,-500.0,9.98e-05,2]
[399424960,1766340983206,-500.0,9.98e-05,2]
[399424961,1766340983240,-235.52662954,9.98e-05,2]
[399424962,1766340983301,-264.47337046,9.98e-05,2]
[399424963,1766340983331,-500.0,9.98e-05,2]
[399424964,1766340983362,-500.0,9.98e-05,2]
[399424965,1766340983400,-500.0,9.98e-05,2]
[399424966,1766340983431,-500.0,9.98e-05,2]
[399424967,1766340983462,-500.0,9.98e-05,2]
[399424968,1766340983492,-500.0,9.98e-05,2]
[399424969,1766340983524,-250.72084587,9.98e-05,2]
[399424970,1766340983558,-500.0,9.98e-05,2]
[399424971,1766340983590,-546.4372274,9.98e-05,2]
[399424972,1766340983622,-376.74711254,9.98e-05,2]
[399424973,1766340984018,-123.25288746,9.98e-05,2]
[399424974,1766340984031,-264.47337046,9.98e-05,2]
[399424975,1766340990162,-235.52662954,9.98e-05,2]
[399424976,1766340990203,-500.0,9.98e-05,2]
[399424977,1766340990244,-500.0,9.98e-05,2]
[399424978,1766340990284,-218.55610676,9.98e-05,2]
[399424979,1766340990399,-7091.8445274,9.981e-05,2]
[399424981,1766340998616,-10000.01,9.981e-05,2]
[399424982,1766340998809,-10000.01,9.981e-05,2]
[399424983,1766340999048,-10000.01,9.981e-05,2]
[399424984,1766340999222,-10000.01,9.981e-05,2]
[399424985,1766340999421,-10000.01,9.981e-05,2]
[399424986,1766341006215,-10000.01,9.981e-05,2]
[399424987,1766341006378,-10000.01,9.981e-05,2]
[399424988,1766341015728,-10000.01,9.981e-05,2]
[399424991,1766341016218,-10000.01,9.981e-05,2]
[399424992,1766341016392,-10000.01,9.981e-05,2]
[399424993,1766341016552,-10000.01,9.981e-05,2]
[399424994,1766341016749,-10000.01,9.981e-05,2]
[399425003,1766341023164,-300.0,9.98e-05,2]
[399425004,1766341023201,-9400.01,9.981e-05,2]
[399425005,1766341023862,-10000.01,9.981e-05,2]
[399425006,1766341027869,532.54,7.945e-05,2]
[399425007,1766341027896,500.0,7.945e-05,2]
[399425008,1766341027922,152.99,7.945e-05,2]
[399425009,1766341027947,237.0,7.945e-05,2]
[399425010,1766341027974,151.35470156,7.945e-05,2]
[399425011,1766341028000,187.1635242,7.945e-05,2]
[399425012,1766341028029,500.0,7.945e-05,2]
[399425013,1766341028059,391.52626957,7.945e-05,2]
[399425014,1766341028087,500.0,7.945e-05,2]
[399425015,1766341028115,500.0,7.945e-05,2]
[399425016,1766341028142,220.89823874,7.945e-05,2]
[399425017,1766341028168,500.0,7.945e-05,2]
[399425018,1766341028195,290.38497693,7.945e-05,2]
[399425019,1766341028231,250.0,0.00035616,30]
[399425020,1766341028650,250.0,0.00035616,30]
[399425021,1766341029272,250.0,0.00035616,30]
[399425022,1766341029858,250.0,0.00035616,30]
[399425023,1766341030466,250.0,0.00035616,30]
[399425024,1766341031183,250.0,0.00035616,30]
[399425025,1766341031788,250.0,0.00035616,30]
[399425026,1766341032413,250.0,0.00035616,30]
[399425027,1766341032519,-997.03483084,9.98e-05,2]
[399425028,1766341032550,-997.03483084,9.98e-05,2]
[399425029,1766341032582,-997.03483084,9.98e-05,2]
[399425030,1766341032954,-997.03483084,9.98e-05,2]
[399425031,1766341033005,-997.03483084,9.98e-05,2]
[399425032,1766341033214,-997.03483084,9.98e-05,2]
[399425033,1766341033247,-997.03483084,9.98e-05,2]
[399425034,1766341033279,-997.03483084,9.98e-05,2]
[399425035,1766341033312,-997.03483084,9.98e-05,2]
[399425036,1766341033346,-997.03483084,9.98e-05,2]
[399425037,1766341034320,-29.6616916,9.98e-05,2]
[399425038,1766341034354,-29.6616916,9.98e-05,2]
[399425040,1766341040475,-937.71144764,9.98e-05,2]
[399425041,1766341040507,-997.03483084,9.98e-05,2]
[399425042,1766341040539,-997.03483084,9.98e-05,2]
[399425043,1766341040570,-997.03483084,9.98e-05,2]
[399425044,1766341040600,-997.03483084,9.98e-05,2]
[399425045,1766341040687,-148.308458,9.98e-05,2]
[399425047,1766341048761,-848.72637284,9.98e-05,2]
[399425048,1766341048799,-997.03483084,9.98e-05,2]
[399425049,1766341048838,-997.03483084,9.98e-05,2]
[399425050,1766341048871,-997.03483084,9.98e-05,2]
[399425051,1766341048902,-997.03483084,9.98e-05,2]
[399425052,1766341049011,-326.2786076,9.98e-05,2]
[399425053,1766341060886,-670.75622324,9.98e-05,2]
[399425054,1766341060917,-997.03483084,9.98e-05,2]
[399425055,1766341060948,-997.03483084,9.98e-05,2]
[399425056,1766341060979,-997.03483084,9.98e-05,2]
[399425057,1766341061010,-997.03483084,9.98e-05,2]
[399425058,1766341061104,-682.2189068,9.98e-05,2]
[399425059,1766341061159,-314.81592404,9.98e-05,2]
[399425060,1766341061192,-997.03483084,9.98e-05,2]
[399425061,1766341061225,-997.03483084,9.98e-05,2]
[399425062,1766341061255,-997.03483084,9.98e-05,2]
[399425063,1766341061288,-997.03483084,9.98e-05,2]
[399425064,1766341061320,-397.06467436,9.98e-05,2]
[399425065,1766341061578,-599.97015648,9.98e-05,2]
[399425066,1766341061609,-997.03483084,9.98e-05,2]
[399425067,1766341061641,-997.03483084,9.98e-05,2]
[399425068,1766341061670,-997.03483084,9.98e-05,2]
[399425069,1766341061702,-997.03483084,9.98e-05,2]
[399425070,1766341061784,-997.03483084,9.98e-05,2]
[399425071,1766341061815,-997.03483084,9.98e-05,2]
[399425072,1766341061847,-997.03483084,9.98e-05,2]
[399425073,1766341061877,-997.03483084,9.98e-05,2]
[399425074,1766341061907,-997.03483084,9.98e-05,2]
[399425075,1766341062120,-426.72636596,9.98e-05,2]
[399425076,1766341062139,-570.30846488,9.98e-05,2]
[399425077,1766341062148,-426.72636596,9.98e-05,2]
[399425078,1766341062165,-29.6616916,9.98e-05,2]
[399425080,1766341068828,-10000.01,9.981e-05,2]
[399425081,1766341069093,-10000.01,9.981e-05,2]
[399425083,1766341085629,-300.0,9.98e-05,2]
[399425084,1766341085659,-150.0,9.98e-05,2]
[399425085,1766341085687,-1200.0,9.98e-05,2]
[399425086,1766341085795,-6700.01,9.981e-05,2]
[399425090,1766341107327,-500.0,9.98e-05,2]
[399425091,1766341107360,-500.0,9.98e-05,2]
[399425092,1766341107391,-500.0,9.98e-05,2]
[399425093,1766341107423,-500.0,9.98e-05,2]
[399425094,1766341107456,-500.0,9.98e-05,2]
[399425095,1766341107487,-500.0,9.98e-05,2]
[399425096,1766341107518,-500.0,9.98e-05,2]
[399425097,1766341107549,-500.0,9.98e-05,2]
[399425098,1766341107580,-500.0,9.98e-05,2]
[399425099,1766341107612,-500.0,9.98e-05,2]
[399425100,1766341108291,-0.01,9.98e-05,2]
[399425102,1766341125054,244.0,0.0003561,30]
[399425109,1766341180620,-2500.0,9.881e-05,2]
[399425110,1766341180650,-300.0,9.979e-05,2]
[399425111,1766341180679,-500.0,9.98e-05,2]
[399425112,1766341180711,-499.99,9.98e-05,2]
[399425113,1766341180743,-500.0,9.98e-05,2]
[399425114,1766341180775,-500.0,9.98e-05,2]
[399425115,1766341181369,-400.03,9.98e-05,2]
[399425116,1766341181465,-99.97,9.98e-05,2]
[399425117,1766341181498,-500.0,9.98e-05,2]
[399425118,1766341181529,-500.0,9.98e-05,2]
[399425119,1766341181562,-500.0,9.98e-05,2]
[399425120,1766341181594,-500.0,9.98e-05,2]
[399425121,1766341181627,-500.0,9.98e-05,2]
[399425122,1766341181658,-500.0,9.98e-05,2]
[399425123,1766341181690,-500.0,9.98e-05,2]
[399425124,1766341181721,-500.0,9.98e-05,2]
[399425125,1766341181753,-500.0,9.98e-05,2]
[399425126,1766341181784,-300.07,9.98e-05,2]
[399425127,1766341181877,-500.0,9.881e-05,2]
[399425128,1766341181908,-199.93,9.98e-05,2]
[399425129,1766341181939,-500.0,9.98e-05,2]
[399425130,1766341181970,-500.0,9.98e-05,2]
[399425131,1766341182003,-500.0,9.98e-05,2]
[399425132,1766341182036,-500.0,9.98e-05,2]
[399425133,1766341182069,-500.0,9.98e-05,2]
[399425134,1766341182104,-500.0,9.98e-05,2]
[399425135,1766341182138,-500.0,9.98e-05,2]
[399425136,1766341182170,-500.0,9.98e-05,2]
[399425137,1766341182216,-100.15,9.98e-05,2]
[399425138,1766341182642,-99.78,9.98e-05,2]
[399425139,1766341182671,-300.07,9.98e-05,2]
[399425140,1766341182681,-199.93,9.98e-05,2]
[399425154,1766341198423,-10000.01,9.98e-05,2]
[399425172,1766341297819,489.6,0.00035616,32]
[399425186,1766341368589,-500.0,9.781e-05,2]
[399425187,1766341368616,-300.0,9.88e-05,2]
[399425188,1766341368644,-250.0,9.881e-05,2]
[399425189,1766341368703,-7900.01,9.881e-05,2]
[399425190,1766341389162,209.61502307,7.945e-05,2]
[399425191,1766341389189,1028.36114193,7.945e-05,2]
[399425194,1766341406076,-300.0,9.88e-05,2]
[399425195,1766341406105,-1200.0,9.88e-05,2]
[399425196,1766341406161,-7000.01,9.881e-05,2]
[399425197,1766341406524,-1041.2726,9.881e-05,2]
[399425198,1766341406550,-7917.4648,9.881e-05,2]
[399425199,1766341406749,-2500.0,9.881e-05,2]
[399425200,1766341406778,-250.0,9.94e-05,2]
[399425201,1766341406807,-500.0,9.978e-05,2]
[399425202,1766341406837,-500.0,9.978e-05,2]
[399425203,1766341406866,-543.57395592,9.978e-05,2]
[399425204,1766341406894,-212.86208816,9.979e-05,2]
[399425205,1766341407002,-987.13791184,9.979e-05,2]
[399425206,1766341407033,-300.0,9.979e-05,2]
[399425207,1766341407063,-500.0,9.979e-05,2]
[399425208,1766341407092,-150.0,9.979e-05,2]
[399425209,1766341407120,-500.0,9.979e-05,2]
[399425210,1766341407223,-7100.01,9.98e-05,2]
[399425211,1766341407250,-10000.01,9.98e-05,2]
[399425212,1766341407347,-10000.01,9.98e-05,2]
[399425213,1766341414414,-10000.01,9.98e-05,2]
[399425219,1766341451787,721.6388895,5.348e-05,2]
[399425220,1766341451816,209.741393,5.348e-05,2]
[399425221,1766341451843,185.04477697,5.348e-05,2]
[399425222,1766341451871,141.84494053,5.348e-05,2]
[399425223,1766341452248,44.34119691,5.629e-05,2]
[399425224,1766341452275,1213.92880309,5.629e-05,2]
[399425225,1766341452457,1258.27,5.911e-05,2]
[399425226,1766341452671,1258.27,6.192e-05,2]
[399425227,1766341452861,1042.6102423,6.474e-05,2]
[399425228,1766341452888,215.6597577,6.474e-05,2]
[399425229,1766341453068,284.3402423,6.755e-05,2]
[399425230,1766341453094,500.0,6.755e-05,2]
[399425231,1766341453124,473.9297577,6.755e-05,2]
[399425232,1766341454200,26.0702423,7.036e-05,2]
[399425233,1766341454237,500.0,7.036e-05,2]
[399425234,1766341454261,500.0,7.036e-05,2]
[399425235,1766341454295,232.1997577,7.036e-05,2]
[399425236,1766341454341,267.8002423,7.318e-05,2]
[399425237,1766341454366,500.0,7.318e-05,2]
[399425238,1766341454392,490.4697577,7.318e-05,2]
[399425239,1766341455178,-264.5026915,7.599e-05,2]
[399425240,1766341456528,-152.85082921,7.599e-05,2]
[399425242,1766341459052,-208.48179988,7.599e-05,2]
[399425243,1766341460571,-300.2647552,7.599e-05,2]
[399425245,1766341462024,-155.51146646,7.599e-05,2]
[399425246,1766341463505,-176.65845775,7.599e-05,2]
[399425247,1766341463529,-56.09497022,7.881e-05,2]
[399425248,1766341465662,-170.07244356,7.881e-05,2]
[399425249,1766341467935,-241.14646199,7.881e-05,2]
[399425250,1766341469352,-353.94830561,7.881e-05,2]
[399425252,1766341475315,-362.62852561,7.881e-05,2]
[399425253,1766341476340,-74.37929301,7.881e-05,2]
[399425254,1766341476362,-171.65846697,8.162e-05,2]
[399425255,1766341478915,-221.90119514,8.162e-05,2]
[399425257,1766341481019,-251.1868518,8.162e-05,2]
[399425258,1766341482478,-189.02492322,8.162e-05,2]
[399425259,1766341486196,-344.67662293,8.162e-05,2]
[399425262,1766341488245,-79.82193994,8.162e-05,2]
[399425263,1766341488266,-445.49924246,8.444e-05,2]
[399425264,1766341490772,-302.32144684,8.444e-05,2]
[399425265,1766341493440,-386.18963,8.444e-05,2]
[399425266,1766341494915,-124.2596807,8.444e-05,2]
[399425267,1766341494938,-86.07228971,8.725e-05,2]
[399425268,1766341496881,-281.24644531,8.725e-05,2]
[399425269,1766341498219,-336.32241046,8.725e-05,2]
[399425270,1766341500471,-307.091974,8.725e-05,2]
[399425271,1766341504580,-247.53688052,8.725e-05,2]
[399425272,1766341504604,-32.78167894,9.007e-05,2]
[399425273,1766341506248,-180.71844043,9.007e-05,2]
[399425274,1766341506710,-1044.76988063,9.007e-05,2]
[399425275,1766341506741,-1258.27,9.288e-05,2]
[399425276,1766341506774,-1258.27,9.57e-05,2]
[399425277,1766341506802,-200.0,9.719e-05,2]
[399425278,1766341506832,-1219.12023874,9.851e-05,2]
[399425279,1766341507443,-39.14976126,9.851e-05,2]
[399425280,1766341507547,-282.604,9.879e-05,2]
[399425281,1766341507584,-346.076,9.88e-05,2]
[399425282,1766341507634,-163.3877,9.88e-05,2]
[399425283,1766341507680,-300.0,9.977e-05,2]
[399425284,1766341507736,-300.0,9.977e-05,2]
[399425285,1766341507771,-1200.0,9.977e-05,2]
[399425286,1766341507800,-250.08009399,9.977e-05,2]
[399425287,1766341507829,-246.50623409,9.977e-05,2]
[399425288,1766341507858,-626.00289673,9.977e-05,2]
[399425289,1766341507886,-171.50821732,9.977e-05,2]
[399425290,1766341507920,-500.0,9.977e-05,2]
[399425291,1766341507948,-338.49302527,9.977e-05,2]
[399425292,1766341507982,-50.6936652,9.977e-05,2]
[399425293,1766341508042,-449.3063348,9.977e-05,2]
[399425294,1766341508077,-500.0,9.977e-05,2]
[399425295,1766341508113,-500.0,9.977e-05,2]
[399425296,1766341508151,-500.0,9.977e-05,2]
[399425297,1766341508187,-500.0,9.977e-05,2]
[399425298,1766341508224,-500.0,9.977e-05,2]
[399425299,1766341508262,-500.0,9.977e-05,2]
[399425300,1766341508297,-500.0,9.977e-05,2]
[399425301,1766341508332,-500.0,9.977e-05,2]
[399425302,1766341508366,-500.0,9.977e-05,2]
[399425303,1766341508462,-500.0,9.977e-05,2]
[399425304,1766341508497,-500.0,9.977e-05,2]
[399425305,1766341508531,-500.0,9.977e-05,2]
[399425306,1766341508566,-500.0,9.977e-05,2]
[399425307,1766341508602,-500.0,9.977e-05,2]
[399425308,1766341508635,-500.0,9.977e-05,2]
[399425309,1766341508669,-500.0,9.977e-05,2]
[399425310,1766341508702,-500.0,9.977e-05,2]
[399425311,1766341508734,-281.42653024,9.977e-05,2]
[399425312,1766341508766,-500.0,9.977e-05,2]
[399425313,1766341509733,-50.7036652,9.977e-05,2]
[399425314,1766341509746,-449.2963348,9.977e-05,2]
[399425315,1766341509756,-50.7036652,9.977e-05,2]
[399425316,1766341509769,-437.15693952,9.977e-05,2]
[399425318,1766341514409,-12.13939528,9.977e-05,2]
[399425319,1766341514449,-500.0,9.977e-05,2]
[399425320,1766341514486,-500.0,9.977e-05,2]
[399425321,1766341514523,-500.0,9.977e-05,2]
[399425322,1766341514560,-500.0,9.977e-05,2]
[399425323,1766341514596,-500.0,9.977e-05,2]
[399425324,1766341514633,-500.0,9.977e-05,2]
[399425325,1766341514671,-500.0,9.977e-05,2]
[399425326,1766341514707,-500.0,9.977e-05,2]
[399425327,1766341514743,-500.0,9.977e-05,2]
[399425328,1766341514779,-475.73120944,9.977e-05,2]
[399425329,1766341514997,-24.26879056,9.977e-05,2]
[399425333,1766341537722,-10000.01,9.88e-05,2]
[399425334,1766341538165,-1276.8605,9.88e-05,2]
[399425335,1766341538197,-2500.0,9.88e-05,2]
[399425336,1766341538232,-500.0,9.977e-05,2]
[399425337,1766341538268,-500.0,9.977e-05,2]
[399425338,1766341538348,-446.289,9.977e-05,2]
[399425339,1766341538390,-53.711,9.977e-05,2]
[399425340,1766341538424,-500.0,9.977e-05,2]
[399425341,1766341538459,-500.0,9.977e-05,2]
[399425342,1766341538494,-500.0,9.977e-05,2]
[399425343,1766341538528,-500.0,9.977e-05,2]
[399425344,1766341538564,-500.0,9.977e-05,2]
[399425345,1766341538602,-500.0,9.977e-05,2]
[399425346,1766341538638,-500.0,9.977e-05,2]
[399425347,1766341538672,-500.0,9.977e-05,2]
[399425348,1766341538706,-500.0,9.977e-05,2]
[399425349,1766341538742,-392.588,9.977e-05,2]
[399425350,1766341539471,-107.412,9.977e-05,2]
[399425351,1766341551041,-500.0,9.977e-05,2]
[399425352,1766341551075,-500.0,9.977e-05,2]
[399425353,1766341551109,-500.0,9.977e-05,2]
[399425354,1766341551143,-500.0,9.977e-05,2]
[399425355,1766341551176,-500.0,9.977e-05,2]
[399425356,1766341551212,-500.0,9.977e-05,2]
[399425357,1766341551246,-500.0,9.977e-05,2]
[399425358,1766341551281,-500.0,9.977e-05,2]
[399425359,1766341551314,-500.0,9.977e-05,2]
[399425360,1766341551348,-500.0,9.977e-05,2]
[399425361,1766341551532,-0.01,9.977e-05,2]
[399425362,1766341568467,-499.99,9.977e-05,2]
[399425363,1766341568503,-500.0,9.977e-05,2]
[399425364,1766341568538,-500.0,9.977e-05,2]
[399425365,1766341568574,-281.42653024,9.977e-05,2]
[399425366,1766341568610,-500.0,9.977e-05,2]
[399425367,1766341568646,-500.0,9.977e-05,2]
[399425368,1766341568682,-500.0,9.977e-05,2]
[399425369,1766341568717,-500.0,9.977e-05,2]
[399425370,1766341568752,-500.0,9.977e-05,2]
[399425371,1766341568787,-500.0,9.977e-05,2]
[399425372,1766341568994,-437.17693952,9.977e-05,2]
[399425373,1766341569161,-62.82306048,9.977e-05,2]
[399425374,1766341569198,-500.92474612,9.977e-05,2]
[399425375,1766341569234,-500.92474612,9.977e-05,2]
[399425376,1766341569269,-500.92474612,9.977e-05,2]
[399425377,1766341569301,-500.92474612,9.977e-05,2]
[399425378,1766341569334,-500.92474612,9.977e-05,2]
[399425379,1766341569368,-500.92474612,9.977e-05,2]
[399425380,1766341569401,-500.92474612,9.977e-05,2]
[399425381,1766341569434,-500.92474612,9.977e-05,2]
[399425382,1766341569467,-500.92474612,9.977e-05,2]
[399425383,1766341569503,-356.79370276,9.977e-05,2]
[399425384,1766341569625,-144.13104336,9.977e-05,2]
[399425385,1766341569660,-500.92474612,9.977e-05,2]
[399425386,1766341569694,-500.92474612,9.977e-05,2]
[399425387,1766341569728,-500.92474612,9.977e-05,2]
[399425388,1766341569763,-500.92474612,9.977e-05,2]
[399425389,1766341569798,-500.92474612,9.977e-05,2]
[399425390,1766341569832,-500.92474612,9.977e-05,2]
[399425391,1766341569866,-500.92474612,9.977e-05,2]
[399425392,1766341569898,-500.92474612,9.977e-05,2]
[399425393,1766341569932,-500.92474612,9.977e-05,2]
[399425394,1766341569966,-194.177737,9.977e-05,2]
[399425395,1766341570083,-306.74700912,9.977e-05,2]
[399425396,1766341570118,-500.92474612,9.977e-05,2]
[399425397,1766341570153,-500.92474612,9.977e-05,2]
[399425398,1766341570190,-500.92474612,9.977e-05,2]
[399425399,1766341570223,-500.92474612,9.977e-05,2]
[399425400,1766341570259,-500.92474612,9.977e-05,2]
[399425401,1766341570294,-500.92474612,9.977e-05,2]
[399425402,1766341570327,-500.92474612,9.977e-05,2]
[399425403,1766341570360,-500.92474612,9.977e-05,2]
[399425404,1766341570394,-500.92474612,9.977e-05,2]
[399425405,1766341570806,-450.87805248,9.977e-05,2]
[399425406,1766341570820,-50.04669364,9.977e-05,2]
[399425407,1766341570829,-319.82385796,9.977e-05,2]
[399425409,1766341594434,-181.10088816,9.977e-05,2]
[399425410,1766341594467,-500.92474612,9.977e-05,2]
[399425411,1766341594502,-500.92474612,9.977e-05,2]
[399425412,1766341594537,-500.92474612,9.977e-05,2]
[399425413,1766341594570,-500.92474612,9.977e-05,2]
[399425414,1766341594604,-500.92474612,9.977e-05,2]
[399425415,1766341594638,-500.92474612,9.977e-05,2]
[399425416,1766341594671,-500.92474612,9.977e-05,2]
[399425417,1766341594705,-500.92474612,9.977e-05,2]
[399425418,1766341594739,-500.92474612,9.977e-05,2]
[399425419,1766341594772,-120.2380474,9.977e-05,2]
[399425420,1766341594893,-380.68669872,9.977e-05,2]
[399425421,1766341594926,-500.92474612,9.977e-05,2]
[399425422,1766341594959,-500.92474612,9.977e-05,2]
[399425423,1766341594992,-793.64354575,9.977e-05,2]
[399425424,1766341595026,-793.64354575,9.977e-05,2]
[399425425,1766341595059,-793.64354575,9.977e-05,2]
[399425426,1766341595095,-793.64354575,9.977e-05,2]
[399425427,1766341595133,-92.14570633,9.977e-05,2]
[399425428,1766341595271,-701.49783942,9.977e-05,2]
[399425429,1766341595305,-793.64354575,9.977e-05,2]
[399425430,1766341595338,-793.64354575,9.977e-05,2]
[399425431,1766341595373,-793.64354575,9.977e-05,2]
[399425432,1766341595407,-793.64354575,9.977e-05,2]
[399425433,1766341595450,-793.64354575,9.977e-05,2]
[399425434,1766341595732,-288.54099239,9.977e-05,2]
[399425435,1766341595747,-505.10255336,9.977e-05,2]
[399425436,1766341595755,-288.54099239,9.977e-05,2]
[399425437,1766341595769,-505.10255336,9.977e-05,2]
[399425438,1766341595778,-155.4763103,9.977e-05,2]
[399425439,1766341608749,-638.16723545,9.977e-05,2]
[399425440,1766341608794,-793.64354575,9.977e-05,2]
[399425441,1766341608836,-793.64354575,9.977e-05,2]
[399425442,1766341608881,-793.64354575,9.977e-05,2]
[399425443,1766341608921,-793.64354575,9.977e-05,2]
[399425444,1766341608962,-793.64354575,9.977e-05,2]
[399425445,1766341609102,-787.2400716,9.977e-05,2]
[399425448,1766341616973,-500.0,9.977e-05,2]
[399425449,1766341617004,-635.86624824,9.977e-05,2]
[399425450,1766341617040,-500.0,9.977e-05,2]
[399425451,1766341617076,-500.0,9.977e-05,2]
[399425452,1766341617112,-500.0,9.977e-05,2]
[399425453,1766341617147,-500.0,9.977e-05,2]
[399425454,1766341617186,-500.0,9.977e-05,2]
[399425455,1766341617225,-500.0,9.977e-05,2]
[399425456,1766341617769,500.0,9.977e-05,2]
[399425457,1766341618080,500.0,9.977e-05,2]
[399425458,1766341621525,300.0,9.977e-05,2]
[399425459,1766341622197,150.0,9.977e-05,2]
[399425460,1766341622890,278.27750352,9.977e-05,2]
[399425461,1766341622912,21.72249648,9.977e-05,2]
[399425462,1766341623217,500.0,9.977e-05,2]
[399425463,1766341628286,471.85821731,9.977e-05,2]
[399425464,1766341630517,205.0,9.8e-05,2]
[399425466,1766341646373,378.84989835,9.977e-05,2]
[399425467,1766341655029,500.0,9.977e-05,2]
[399425468,1766341655081,474.97715477,9.977e-05,2]
[399425469,1766341681551,300.0,9.977e-05,2]
[399425470,1766341684784,2500.0,9.88e-05,2]
[399425471,1766341685587,1200.0,9.977e-05,2]
[399425472,1766341692277,476.3076972,9.977e-05,2]
[399425475,1766341699718,10000.0,0.000356,30]
[399425480,1766341741023,1000.0,0.00035615,30]
[399425481,1766341741289,1000.0,0.00035615,30]
[399425482,1766341741435,300.0,9.977e-05,2]
[399425483,1766341747176,2671.29453589,9.977e-05,2]
[399425484,1766341747202,10000.01,9.977e-05,2]
[399425485,1766341747229,10000.01,9.977e-05,2]
[399425486,1766341747253,10000.01,9.977e-05,2]
[399425487,1766341747278,10000.01,9.977e-05,2]
[399425488,1766341747300,10000.01,9.977e-05,2]
[399425489,1766341747323,6667.79376131,9.977e-05,2]
[399425516,1766341831879,-151.0,9.877e-05,2]
[399425519,1766341831888,-43090.03067262,9.878e-05,2]
[399425521,1766341831900,-1120.32215473,9.878e-05,2]
[399425522,1766341831987,-858.14209673,9.878e-05,2]
[399425523,1766341832044,-3586.20497592,9.878e-05,2]
[399425524,1766341832054,-300.0,9.879e-05,2]
[399425525,1766341832063,-1200.0,9.879e-05,2]
[399425526,1766341832072,-150.0,9.879e-05,2]
[399425527,1766341832082,-300.0,9.879e-05,2]
[399425528,1766341832092,-300.0,9.879e-05,2]
[399425529,1766341832102,-24486.20424402,9.88e-05,2]
[399425531,1766341832113,-419951.48790325,9.88e-05,2]
[399425534,1766341832124,-2702.36957173,9.88e-05,2]
[399425535,1766341832135,-72344.04419112,9.88e-05,2]
[399425538,1766341832172,-0.68028126,9.88e-05,2]
[399425546,1766341838021,-500.0,9.877e-05,2]
[399425547,1766341838031,-500.0,9.877e-05,2]
[399425548,1766341838041,-500.0,9.877e-05,2]
[399425549,1766341838051,-500.0,9.877e-05,2]
[399425550,1766341838062,-500.0,9.877e-05,2]
[399425551,1766341838072,-500.0,9.877e-05,2]
[399425552,1766341838083,-500.0,9.877e-05,2]
[399425553,1766341838093,-500.0,9.877e-05,2]
[399425554,1766341838103,-500.0,9.877e-05,2]
[399425555,1766341838113,-500.0,9.877e-05,2]
[399425556,1766341838122,-500.0,9.877e-05,2]
[399425557,1766341838132,-500.0,9.877e-05,2]
[399425558,1766341838141,-500.0,9.877e-05,2]
[399425559,1766341838150,-500.0,9.877e-05,2]
[399425560,1766341838160,-500.0,9.877e-05,2]
[399425561,1766341838169,-500.0,9.877e-05,2]
[399425562,1766341838179,-500.0,9.877e-05,2]
[399425563,1766341838189,-500.0,9.877e-05,2]
[399425564,1766341838198,-500.0,9.877e-05,2]
[399425565,1766341838207,-500.0,9.877e-05,2]
[399425566,1766341838217,-500.0,9.877e-05,2]
[399425567,1766341838227,-500.0,9.877e-05,2]
[399425568,1766341838236,-500.0,9.877e-05,2]
[399425569,1766341838247,-500.0,9.877e-05,2]
[399425570,1766341838257,-500.0,9.877e-05,2]
[399425571,1766341838267,-500.0,9.877e-05,2]
[399425572,1766341838276,-500.0,9.877e-05,2]
[399425573,1766341838291,-500.0,9.877e-05,2]
[399425574,1766341838301,-500.0,9.877e-05,2]
[399425575,1766341838311,-500.0,9.877e-05,2]
[399425576,1766341838320,-308.51072393,9.877e-05,2]
[399425577,1766341838330,-500.0,9.877e-05,2]
[399425578,1766341838340,-500.0,9.877e-05,2]
[399425579,1766341838350,-500.0,9.877e-05,2]
[399425580,1766341838361,-500.0,9.877e-05,2]